bitfinex/quotes_SOLUSD_20220207
["timestamp","ask_amount","ask_price","bid_price","bid_amount"]
[1644277936454,59.62164848,117.62,117.56,48.69722214]
[1644277936655,59.87164848,117.62,117.55,22.9893]
[1644277937555,59.87164848,117.62,117.55,58.9000935]
[1644277937757,65.87164848,117.62,117.55,59.1500935]
[1644277937957,65.87164848,117.62,117.55,23.2393]
[1644277938157,67.06064179,117.62,117.55,22.9893]
[1644277938357,67.06064179,117.62,117.51,44.29922987]
[1644277938561,22.6452,117.61,117.53,23.6146]
[1644277938760,12.7622,117.59,117.53,23.8646]
[1644277939058,43.64902834,117.58,117.53,36.6263]
[1644277939457,43.64902834,117.58,117.53,0.25]
[1644277939658,43.64902834,117.58,117.51,38.60991973]
[1644277939874,43.64902834,117.58,117.51,38.85991973]
[1644277940966,56.41142834,117.58,117.51,38.85991973]
[1644277942465,56.66142834,117.58,117.51,38.85991973]
[1644277943065,79.33052834,117.58,117.51,38.85991973]
[1644277945372,79.33052834,117.58,117.51,44.85991973]
[1644277945572,79.33052834,117.58,117.51,38.85991973]
[1644277946472,85.33052834,117.58,117.51,38.85991973]
[1644277948193,79.33052834,117.58,117.51,38.85991973]
[1644277949599,35.6815,117.58,117.51,51.62371973]
[1644277949799,12.7624,117.58,117.51,51.62371973]
[1644277950000,12.7612,117.59,117.52,1.76512987]
[1644277950198,1.18899331,117.62,117.52,32.95972987]
[1644277950398,1.18899331,117.63,117.52,57.75922987]
[1644277950598,46.83963347,117.63,117.53,1.76512987]
[1644277950800,46.83963347,117.63,117.53,14.77572987]
[1644277950999,12.758,117.62,117.55,36.02931292]
[1644277951201,12.758,117.62,117.55,42.27931292]
[1644277951402,12.758,117.62,117.55,44.04444279]
[1644277952001,12.758,117.62,117.56,12.7579]
[1644277952199,12.758,117.62,117.56,13.0079]
[1644277956304,12.758,117.62,117.56,12.7579]
[1644277956506,12.758,117.62,117.56,13.0079]
[1644277960207,13.008,117.62,117.56,13.0079]
[1644277964122,13.008,117.62,117.56,19.0079]
[1644277964324,12.758,117.62,117.56,19.0079]
[1644277972253,12.758,117.62,117.56,13.0079]
[1644277972952,12.7569,117.63,117.56,14.77302987]
[1644277973154,1.18899331,117.64,117.56,39.57912987]
[1644277973353,1.18899331,117.66,117.56,39.57912987]
[1644277973653,1.18899331,117.67,117.59,12.7522]
[1644277973855,71.7559555,117.68,117.6,43.22524618]
[1644277974054,60.5226555,117.68,117.6,49.22524618]
[1644277974253,47.7706555,117.68,117.6,49.47524618]
[1644277974453,1.18899331,117.68,117.6,49.47524618]
[1644277974654,1.18899331,117.68,117.6,51.24037605]
[1644277974957,0.08659952,117.69,117.62,12.7518]
[1644277975156,0.08659952,117.69,117.63,4.249]
[1644277975353,0.08659952,117.69,117.63,6.01412987]
[1644277975554,0.08659952,117.69,117.64,40.71190585]
[1644277975756,0.08659952,117.69,117.64,42.72703572]
[1644277976255,0.08659952,117.69,117.66,12.7437]
[1644277976656,0.08659952,117.69,117.66,18.9937]
[1644277977056,0.08659952,117.69,117.67,1.22829997]
[1644277977256,0.08659952,117.69,117.68,44.23522833]
[1644277977657,0.08659952,117.69,117.67,1.22829997]
[1644277978657,0.08659952,117.69,117.68,47.05411168]
[1644277978858,0.08659952,117.69,117.68,49.08631165]
[1644277979059,0.08659952,117.69,117.68,49.33631165]
[1644277980160,0.00659952,117.69,117.68,49.33631165]
[1644277980560,0.00659952,117.69,117.68,55.33631165]
[1644277981861,0.00659952,117.69,117.68,68.08041165]
[1644277985667,0.16659952,117.69,117.68,68.08041165]
[1644277985866,0.16659952,117.69,117.68,69.84554152]
[1644277986066,0.16659952,117.69,117.68,68.08041165]
[1644277987977,0.16659952,117.69,117.68,67.83041165]
[1644277988176,0.00659952,117.69,117.68,69.59554152]
[1644277989377,0.00659952,117.69,117.68,69.84554152]
[1644277989584,0.33319904,117.74,117.68,69.84554152]
[1644277989773,0.33319904,117.74,117.69,4.247]
[1644277989973,5.43599331,117.81,117.69,4.247]
[1644277989974,1.24548205,117.82,117.7,35.2862]
[1644277990175,0.05648874,117.82,117.71,4.245]
[1644277990388,0.05648874,117.82,117.71,6.01012987]
[1644277990577,0.05648874,117.82,117.73,42.4489]
[1644277990777,0.05648874,117.82,117.74,6.24527]
[1644277990975,0.05648874,117.82,117.74,25.74759987]
[1644277991176,0.05648874,117.82,117.75,1.76512987]
[1644277991475,0.05648874,117.82,117.76,6.24421]
[1644277991676,0.05648874,117.82,117.77,43.04045042]
[1644277992085,0.05648874,117.82,117.78,13.13434815]
[1644277992276,0.05648874,117.82,117.79,47.60235973]
[1644277992475,0.05648874,117.82,117.8,3.26049994]
[1644277992674,0.05648874,117.82,117.81,35.64521318]
[1644277993275,0.05648874,117.82,117.81,35.89521318]
[1644277993475,0.05648874,117.82,117.81,35.64521318]
[1644277993876,0.05648874,117.82,117.8,3.26049994]
[1644277994075,1.05648873,117.82,117.8,3.26049994]
[1644277994475,2.86038873,117.82,117.8,3.26049994]
[1644277994874,2.86038873,117.82,117.8,45.31174565]
[1644277995478,2.86038873,117.82,117.8,45.56174565]
[1644277995876,0.05648874,117.82,117.81,0.40214815]
[1644277997081,2.86038873,117.82,117.81,0.40214815]
[1644277997478,2.86038873,117.82,117.81,41.38455452]
[1644277997678,2.86038873,117.82,117.81,0.65214815]
[1644277997884,0.05648874,117.82,117.81,3.91264809]
[1644277998081,0.05648874,117.82,117.81,3.66264809]
[1644277998282,0.05648874,117.82,117.81,3.91264809]
[1644277998480,1.86038874,117.82,117.81,0.65214815]
[1644277999085,0.05648874,117.82,117.81,3.91264809]
[1644278000309,1.86038874,117.82,117.81,0.65214815]
[1644278000711,1.86038874,117.82,117.81,0.40214815]
[1644278001209,43.58292314,117.81,117.77,47.19858783]
[1644278001608,43.58292314,117.81,117.77,53.44858783]
[1644278001808,0.05648874,117.82,117.77,53.44858783]
[1644278005812,0.05648874,117.82,117.77,53.19858783]
[1644278007212,0.05648874,117.82,117.77,53.44858783]
[1644278008216,0.05648874,117.82,117.77,0.65214815]
[1644278008612,0.05648874,117.82,117.77,0.40214815]
[1644278009015,0.05648874,117.82,117.76,0.40214815]
[1644278009212,0.05648874,117.82,117.76,48.12638466]
[1644278009612,0.05648874,117.82,117.76,48.37638466]
[1644278010013,40.25330559,117.81,117.76,48.37638466]
[1644278011416,40.25330559,117.81,117.76,0.65214815]
[1644278011620,58.99280559,117.81,117.76,0.40214815]
[1644278011815,52.99280559,117.81,117.76,0.40214815]
[1644278012016,4.245,117.8,117.74,0.40214815]
[1644278012619,4.245,117.8,117.74,14.90518668]
[1644278012819,0.05648874,117.82,117.74,15.15518668]
[1644278013020,0.05648874,117.82,117.74,21.15518668]
[1644278013424,0.05648874,117.82,117.75,35.79901216]
[1644278013621,0.05648874,117.82,117.75,46.04401216]
[1644278013819,0.05648874,117.82,117.75,46.29401216]
[1644278014725,0.05648874,117.82,117.75,36.04901216]
[1644278014920,0.05648874,117.82,117.75,48.78511216]
[1644278015119,0.05648874,117.82,117.76,0.40214815]
[1644278015521,47.71889652,117.82,117.76,0.40214815]
[1644278016122,47.96889652,117.82,117.76,0.40214815]
[1644278016724,47.96889652,117.82,117.8,0.28046298]
[1644278016923,2.80389999,117.81,117.8,0.28046298]
[1644278018824,2.80389999,117.81,117.8,0.68261113]
[1644278019427,3.9928933,117.81,117.8,0.68261113]
[1644278019828,2.80389999,117.81,117.8,0.68261113]
[1644278020027,3.9928933,117.81,117.8,0.68261113]
[1644278020427,2.80389999,117.81,117.8,0.68261113]
[1644278020928,8.80389999,117.81,117.8,0.68261113]
[1644278021528,6.0,117.81,117.8,1.9109111]
[1644278023032,6.0,117.81,117.8,0.68261113]
[1644278023332,0.05648874,117.82,117.8,0.68261113]
[1644278024145,0.05648874,117.82,117.81,41.41313573]
[1644278024337,0.05648874,117.82,117.81,41.66313573]
[1644278024634,0.05648874,117.82,117.81,42.06528388]
[1644278024836,0.05648874,117.82,117.81,44.09748385]
[1644278025035,0.05648874,117.82,117.81,43.84748385]
[1644278025236,0.05648874,117.82,117.81,44.06930048]
[1644278026570,0.05648874,117.82,117.81,44.31930048]
[1644278029466,0.05648874,117.82,117.81,2.90616475]
[1644278029664,0.05648874,117.82,117.81,2.68434812]
[1644278029864,2.86038873,117.82,117.81,0.65214815]
[1644278030263,2.86038873,117.82,117.81,0.40214815]
[1644278031065,1.86038874,117.82,117.81,0.40214815]
[1644278031264,0.05648874,117.82,117.81,2.43434812]
[1644278031465,0.05648874,117.82,117.81,3.91264809]
[1644278034274,2.86038873,117.82,117.81,0.40214815]
[1644278035471,42.11413494,117.82,117.81,0.40214815]
[1644278042176,54.85133494,117.82,117.81,0.40214815]
[1644278042378,54.85133494,117.82,117.8,0.28046298]
[1644278042579,56.04032825,117.82,117.8,0.28046298]
[1644278042776,15.59758873,117.82,117.8,0.28046298]
[1644278043676,2.86038873,117.82,117.8,0.28046298]
[1644278045279,1.86038874,117.82,117.8,0.28046298]
[1644278048982,14.59768874,117.82,117.8,0.28046298]
[1644278049184,0.99999999,117.81,117.8,0.28046298]
[1644278049382,37.60776328,117.81,117.8,0.28046298]
[1644278049784,37.85776328,117.81,117.8,0.28046298]
[1644278050883,49.59586328,117.81,117.8,0.28046298]
[1644278055493,49.59586328,117.81,117.77,37.75984088]
[1644278059600,49.59586328,117.81,117.74,4.244]
[1644278059801,49.59586328,117.81,117.75,0.25]
[1644278060626,49.59586328,117.81,117.75,37.29595894]
[1644278060824,12.7381,117.81,117.75,37.29595894]
[1644278061926,12.7381,117.81,117.75,50.03405894]
[1644278062624,37.03033832,117.8,117.75,50.03405894]
[1644278063229,49.76933832,117.8,117.75,37.29595894]
[1644278064327,12.739,117.8,117.75,37.29595894]
[1644278064828,12.738,117.81,117.75,50.03395894]
[1644278067128,1.24548205,117.82,117.75,50.03395894]
[1644278067329,0.05648874,117.82,117.76,1.75813749]
[1644278067628,0.05648874,117.82,117.77,12.7342]
[1644278067831,0.05648874,117.82,117.77,12.9842]
[1644278068028,0.05648874,117.82,117.77,18.9842]
[1644278068232,0.05648874,117.82,117.78,43.93363659]
[1644278068429,0.05648874,117.82,117.78,42.1754991]
[1644278068630,0.05648874,117.82,117.78,42.4254991]
[1644278068831,0.05648874,117.82,117.79,12.7333]
[1644278069032,0.05648874,117.82,117.8,41.75945697]
[1644278069833,0.05648874,117.82,117.81,4.26049993]
[1644278071736,0.05648874,117.82,117.81,4.54096291]
[1644278073443,1.86038874,117.82,117.81,0.28046298]
[1644278073639,1.86038874,117.82,117.77,4.244]
[1644278073840,1.86038874,117.82,117.73,28.3627]
[1644278074048,3.04938205,117.82,117.73,24.1187]
[1644278074242,5.19621062,117.82,117.72,4.245]
[1644278074441,5.43399331,117.81,117.71,3.1461057]
[1644278074641,12.7415,117.78,117.72,37.42482416]
[1644278075242,12.7415,117.78,117.72,37.67482416]
[1644278075648,71.07375099,117.8,117.72,37.67482416]
[1644278075946,71.07375099,117.8,117.72,37.42482416]
[1644278076144,34.35744758,117.78,117.72,37.42482416]
[1644278076545,40.35744758,117.78,117.71,7.3911057]
[1644278076746,6.0,117.78,117.71,7.3911057]
[1644278076944,5.43499331,117.79,117.71,7.3911057]
[1644278077147,12.7402,117.79,117.72,1.75369325]
[1644278077646,12.7402,117.79,117.72,7.75369325]
[1644278077848,12.7402,117.79,117.73,40.81019967]
[1644278078245,12.7402,117.79,117.73,41.06019967]
[1644278078947,12.7402,117.79,117.73,40.81019967]
[1644278079347,48.48367909,117.78,117.73,40.81019967]
[1644278079553,12.7424,117.77,117.73,40.81019967]
[1644278080550,42.07127093,117.76,117.73,40.81019967]
[1644278080750,54.81417093,117.76,117.73,40.81019967]
[1644278081348,1.8039,117.75,117.73,40.81019967]
[1644278082150,1.8039,117.75,117.71,15.8882057]
[1644278082350,1.8039,117.75,117.71,3.1461057]
[1644278083351,46.83623297,117.75,117.71,3.1461057]
[1644278083553,59.58023297,117.75,117.71,3.1461057]
[1644278083752,14.5479,117.75,117.71,3.1461057]
[1644278084159,1.8039,117.75,117.71,3.1461057]
[1644278084354,1.8039,117.75,117.71,3.3961057]
[1644278084852,1.8039,117.75,117.72,36.35349984]
[1644278085051,1.8039,117.75,117.73,4.26049993]
[1644278085452,1.8039,117.75,117.74,41.80224997]
[1644278086252,1.8039,117.75,117.74,42.05224997]
[1644278086452,24.4439,117.78,117.74,42.05224997]
[1644278086653,65.2673,117.8,117.74,42.05224997]
[1644278086953,12.741,117.78,117.74,42.05224997]
[1644278087256,40.45703365,117.8,117.74,42.05224997]
[1644278087653,6.0,117.8,117.74,42.05224997]
[1644278087857,0.25,117.8,117.74,42.05224997]
[1644278088353,12.74,117.79,117.74,42.05224997]
[1644278089155,35.52656191,117.78,117.74,42.05224997]
[1644278089554,48.26746191,117.78,117.74,0.25]
[1644278089756,48.26746191,117.78,117.71,43.1569057]
[1644278089954,48.26746191,117.78,117.71,3.1461057]
[1644278090553,48.26746191,117.78,117.72,42.25881929]
[1644278091357,48.26746191,117.78,117.71,3.1461057]
[1644278091556,54.51746191,117.78,117.71,3.1461057]
[1644278091956,48.51746191,117.78,117.71,3.1461057]
[1644278092356,48.51746191,117.78,117.76,3.1461057]
[1644278092559,14.5479,117.77,117.76,3.1461057]
[1644278092961,40.45627855,117.76,117.7,48.65233884]
[1644278093960,12.7449,117.75,117.7,48.65233884]
[1644278094457,12.7449,117.75,117.7,48.90233884]
[1644278094659,12.7449,117.75,117.7,48.65233884]
[1644278095858,12.9949,117.75,117.7,48.65233884]
[1644278098062,12.7449,117.75,117.7,48.65233884]
[1644278098263,12.7449,117.75,117.7,48.90233884]
[1644278101065,5.43599331,117.79,117.7,61.64533884]
[1644278101266,42.4734,117.8,117.7,61.64533884]
[1644278101267,42.4734,117.8,117.71,24.185]
[1644278101465,66.7299,117.8,117.71,28.431]
[1644278101683,66.7299,117.8,117.71,28.681]
[1644278101886,67.91889331,117.8,117.71,28.681]
[1644278102086,37.5234751,117.79,117.72,44.00058803]
[1644278102285,12.7408,117.78,117.71,28.681]
[1644278102483,12.7408,117.78,117.71,28.431]
[1644278102686,12.7408,117.78,117.71,4.246]
[1644278102887,12.7408,117.78,117.68,15.78570577]
[1644278103089,27.3273,117.77,117.66,24.74296415]
[1644278103291,27.3273,117.77,117.67,43.07799493]
[1644278103292,12.749,117.74,117.67,43.07799493]
[1644278103487,42.30135734,117.73,117.67,43.07799493]
[1644278103687,95.05375734,117.73,117.67,43.07799493]
[1644278103887,48.5054,117.73,117.67,43.07799493]
[1644278104086,6.25,117.73,117.67,43.07799493]
[1644278104293,1.18899331,117.76,117.67,43.07799493]
[1644278104493,24.26929331,117.77,117.68,4.247]
[1644278104686,24.26929331,117.77,117.68,23.0167]
[1644278104887,12.7442,117.75,117.74,3.1371599]
[1644278105287,62.13729854,117.75,117.74,3.1371599]
[1644278105488,14.5481,117.75,117.74,3.1371599]
[1644278108388,14.7981,117.75,117.74,3.1371599]
[1644278110891,14.5481,117.75,117.74,3.1371599]
[1644278111392,12.7442,117.75,117.74,7.39765983]
[1644278111592,12.7431,117.76,117.74,7.39765983]
[1644278112196,57.23365527,117.76,117.74,3.1371599]
[1644278114192,57.23365527,117.76,117.74,6.16935986]
[1644278115592,57.23365527,117.76,117.74,7.39765983]
[1644278115792,59.03755527,117.76,117.74,7.39765983]
[1644278115994,59.03755527,117.76,117.74,3.1371599]
[1644278118696,14.547,117.76,117.74,3.1371599]
[1644278125601,52.0935638,117.75,117.74,3.1371599]
[1644278126609,52.0935638,117.75,117.68,116.19298097]
[1644278126803,63.52955711,117.75,117.68,116.19298097]
[1644278127003,65.67638568,117.75,117.68,116.19298097]
[1644278127405,65.67638568,117.75,117.69,38.02982086]
[1644278128203,65.92638568,117.75,117.69,38.02982086]
[1644278128504,64.73739237,117.75,117.69,38.02982086]
[1644278128706,59.53255711,117.75,117.69,38.02982086]
[1644278128903,58.3435638,117.75,117.69,38.02982086]
[1644278130105,18.9959,117.75,117.69,38.02982086]
[1644278131106,63.74944846,117.75,117.69,38.02982086]
[1644278132810,57.74944846,117.75,117.69,38.02982086]
[1644278133208,12.9959,117.75,117.69,38.02982086]
[1644278134613,12.9959,117.75,117.74,2.3489841]
[1644278134813,14.7998,117.75,117.74,2.3489841]
[1644278139125,55.66724398,117.75,117.74,2.3489841]
[1644278140426,20.7998,117.75,117.74,2.3489841]
[1644278141119,14.7998,117.75,117.74,2.3489841]
[1644278144145,20.7998,117.75,117.74,2.3489841]
[1644278144345,14.7998,117.75,117.74,2.3489841]
[1644278145051,20.7998,117.75,117.74,2.3489841]
[1644278145648,14.7998,117.75,117.74,2.3489841]
[1644278146049,14.7998,117.75,117.74,6.60948403]
[1644278146650,14.5498,117.75,117.74,6.60948403]
[1644278147052,1.8039,117.75,117.74,6.60948403]
[1644278147854,12.7429,117.77,117.74,6.60948403]
[1644278148052,12.7429,117.77,117.75,38.10181632]
[1644278148452,12.7429,117.77,117.76,4.26049993]
[1644278149751,12.7429,117.77,117.75,38.10181632]
[1644278150353,12.9929,117.77,117.75,38.10181632]
[1644278150754,1.8039,117.76,117.74,2.3489841]
[1644278150952,12.7447,117.75,117.74,2.3489841]
[1644278151752,51.37153785,117.75,117.74,2.3489841]
[1644278152153,12.7447,117.75,117.74,2.3489841]
[1644278153863,52.99098373,117.75,117.74,2.3489841]
[1644278155359,58.99098373,117.75,117.74,2.3489841]
[1644278155560,52.99098373,117.75,117.74,2.3489841]
[1644278157164,57.23698373,117.75,117.74,2.3489841]
[1644278157565,52.99098373,117.75,117.74,2.3489841]
[1644278157769,53.24098373,117.75,117.74,2.3489841]
[1644278160665,53.24098373,117.75,117.74,0.64100055]
[1644278160865,62.57680561,117.75,117.74,0.64100055]
[1644278161067,66.82280561,117.75,117.69,0.024]
[1644278161766,63.23698373,117.75,117.69,36.38976408]
[1644278164071,58.99098373,117.75,117.69,36.38976408]
[1644278164369,58.99098373,117.75,117.69,0.024]
[1644278164572,83.8171123,117.75,117.69,0.024]
[1644278164768,85.00610561,117.75,117.69,0.024]
[1644278165169,89.25310561,117.75,117.69,0.024]
[1644278165371,88.3141123,117.75,117.69,48.01148122]
[1644278165573,86.16728373,117.75,117.69,48.01148122]
[1644278166376,83.25048483,117.75,117.69,48.01148122]
[1644278167972,83.25048483,117.75,117.69,0.024]
[1644278169277,86.58630671,117.75,117.69,0.024]
[1644278175088,12.501392,117.74,117.68,76.57868309]
[1644278175290,1.18899331,117.72,117.68,75.54658317]
[1644278175496,4.248,117.71,117.68,75.54658317]
[1644278175691,4.248,117.71,117.68,73.50990597]
[1644278175692,2.99289331,117.7,117.68,73.50990597]
[1644278175895,49.83428391,117.69,117.68,70.04205022]
[1644278176092,49.83428391,117.69,117.68,40.1111523]
[1644278176292,19.15202857,117.69,117.68,6.08672317]
[1644278176492,19.15202857,117.69,117.58,25.03946415]
[1644278176702,1.18899331,117.68,117.56,1.20776415]
[1644278177006,1.18899331,117.68,117.54,4.25]
[1644278177007,49.88971667,117.67,117.54,4.25]
[1644278177204,60.93834958,117.67,117.53,45.88720228]
[1644278177403,50.25138566,117.66,117.53,9.2426053]
[1644278177606,17.015,117.65,117.53,9.2426053]
[1644278177805,66.01998566,117.65,117.53,4.9916053]
[1644278178002,17.35448132,117.64,117.53,4.9916053]
[1644278178206,4.252,117.63,117.53,4.9916053]
[1644278178404,4.80602742,117.62,117.53,4.9916053]
[1644278178605,4.252,117.61,117.53,4.9916053]
[1644278178807,12.7685,117.6,117.53,4.9916053]
[1644278179005,4.252,117.59,117.53,4.9916053]
[1644278179205,27.60748132,117.6,117.53,4.9916053]
[1644278179404,2.14682857,117.58,117.53,4.9916053]
[1644278179704,38.08853795,117.58,117.53,4.9916053]
[1644278179904,65.2804409,117.58,117.53,4.9916053]
[1644278180105,2.14682857,117.57,117.53,4.9916053]
[1644278180305,4.253,117.56,117.53,4.9916053]
[1644278180504,1.8039,117.55,117.53,4.9916053]
[1644278180709,4.253,117.54,117.53,4.9916053]
[1644278181105,10.253,117.54,117.53,4.9916053]
[1644278182004,23.0258,117.54,117.53,4.9916053]
[1644278182607,23.2758,117.54,117.53,4.9916053]
[1644278186618,19.0228,117.54,117.53,4.9916053]
[1644278186817,18.7728,117.54,117.53,4.9916053]
[1644278188318,23.0258,117.54,117.53,4.9916053]
[1644278189218,18.7728,117.54,117.53,4.9916053]
[1644278190620,23.2758,117.54,117.53,4.9916053]
[1644278190822,36.1004,117.54,117.53,4.9916053]
[1644278191424,30.1004,117.54,117.53,4.9916053]
[1644278191623,30.1004,117.54,117.47,0.024]
[1644278192631,36.1004,117.54,117.47,0.024]
[1644278192830,12.7729,117.52,117.47,0.024]
[1644278193433,6.0,117.54,117.47,0.024]
[1644278193631,52.8308,117.55,117.47,0.024]
[1644278193835,48.5758,117.55,117.47,0.024]
[1644278194433,79.19660372,117.55,117.47,43.11284642]
[1644278194632,79.19660372,117.55,117.48,0.024]
[1644278195033,12.7706,117.54,117.48,0.024]
[1644278195834,4.61728762,117.53,117.48,0.024]
[1644278196034,4.61728762,117.53,117.47,43.08884642]
[1644278196035,12.7706,117.54,117.47,43.11284642]
[1644278196235,12.7706,117.54,117.48,0.024]
[1644278196839,18.7706,117.54,117.48,0.024]
[1644278197039,43.38721572,117.54,117.48,0.024]
[1644278197238,43.63721572,117.54,117.48,0.024]
[1644278198140,13.0206,117.54,117.48,0.024]
[1644278198741,19.0206,117.54,117.48,0.024]
[1644278198941,13.0206,117.54,117.48,0.024]
[1644278199147,43.57884741,117.54,117.48,0.024]
[1644278199542,47.83184741,117.54,117.48,0.024]
[1644278199742,53.83184741,117.54,117.48,0.024]
[1644278199942,49.57884741,117.54,117.48,0.024]
[1644278200346,49.57884741,117.54,117.45,0.024]
[1644278200544,49.57884741,117.54,117.46,4.255]
[1644278200946,49.57884741,117.54,117.47,0.024]
[1644278202349,4.255,117.53,117.47,0.024]
[1644278202546,17.0267,117.53,117.47,0.024]
[1644278202746,17.0267,117.53,117.44,0.024]
[1644278203151,23.0267,117.53,117.44,0.024]
[1644278203550,4.67984393,117.52,117.44,0.024]
[1644278203848,30.55824741,117.49,117.44,0.024]
[1644278204349,30.55824741,117.49,117.42,0.024]
[1644278204750,30.55824741,117.49,117.43,37.69112125]
[1644278204948,12.7742,117.5,117.43,37.71512125]
[1644278205348,12.7742,117.5,117.43,1.11004516]
[1644278205549,18.7742,117.5,117.43,0.024]
[1644278206352,26.13560273,117.49,117.43,0.024]
[1644278206553,12.7769,117.48,117.43,0.024]
[1644278206854,12.7769,117.48,117.41,4.9916053]
[1644278206855,9.10248861,117.47,117.42,0.024]
[1644278207057,9.10248861,117.47,117.41,5.0156053]
[1644278207856,21.87968861,117.47,117.41,5.0156053]
[1644278208055,4.257,117.46,117.41,5.0156053]
[1644278208455,10.257,117.46,117.41,5.0156053]
[1644278208857,26.13560273,117.45,117.41,5.0156053]
[1644278209062,4.257,117.44,117.41,5.0156053]
[1644278209461,1.8039,117.43,117.41,4.9916053]
[1644278209657,4.258,117.42,117.41,4.9916053]
[1644278209860,13.36048861,117.42,117.41,3.1982053]
[1644278210058,19.61048861,117.42,117.41,3.1982053]
[1644278210257,10.508,117.42,117.41,3.1982053]
[1644278210658,0.25,117.42,117.41,3.1982053]
[1644278211764,0.25,117.42,117.37,0.024]
[1644278211962,6.0,117.43,117.36,0.024]
[1644278212159,37.04687836,117.44,117.36,0.024]
[1644278212359,0.25,117.43,117.36,41.38452243]
[1644278212660,37.04687836,117.44,117.37,0.024]
[1644278212860,37.29687836,117.44,117.37,0.024]
[1644278213060,12.7834,117.43,117.37,0.024]
[1644278213261,17.0414,117.43,117.37,0.024]
[1644278213464,23.0414,117.43,117.37,0.024]
[1644278214261,18.7834,117.43,117.37,0.024]
[1644278214660,4.19121298,117.42,117.37,0.024]
[1644278214861,19.12214155,117.42,117.36,0.024]
[1644278215062,25.12214155,117.42,117.36,0.024]
[1644278215260,22.97531298,117.42,117.36,0.024]
[1644278216065,23.22531298,117.42,117.36,0.024]
[1644278216263,23.22531298,117.42,117.36,36.02674301]
[1644278216462,23.22531298,117.42,117.36,0.024]
[1644278217362,19.0341,117.42,117.36,0.024]
[1644278217562,0.25,117.42,117.36,0.024]
[1644278217761,4.259,117.45,117.36,0.024]
[1644278217962,6.0,117.44,117.36,4.282]
[1644278218162,10.258,117.47,117.37,0.024]
[1644278218362,35.15375318,117.46,117.37,36.89613954]
[1644278218562,41.15375318,117.46,117.37,36.89613954]
[1644278218962,53.93435318,117.46,117.37,36.89613954]
[1644278219363,72.32161228,117.46,117.37,36.89613954]
[1644278219562,4.258,117.45,117.37,36.89613954]
[1644278219964,26.49843053,117.45,117.37,36.89613954]
[1644278220162,12.7835,117.43,117.37,36.89613954]
[1644278220366,12.7835,117.43,117.37,0.024]
[1644278220565,20.93032857,117.43,117.36,0.024]
[1644278220962,18.7835,117.43,117.36,0.024]
[1644278221268,19.0335,117.43,117.36,0.024]
[1644278221463,21.18032857,117.43,117.36,0.024]
[1644278221663,21.18032857,117.43,117.36,3.2222053]
[1644278221864,12.7853,117.41,117.37,0.024]
[1644278222069,18.7853,117.41,117.36,3.1982053]
[1644278222464,12.7853,117.41,117.36,3.1982053]
[1644278223868,18.7853,117.41,117.36,3.1982053]
[1644278224968,19.0353,117.41,117.36,3.1982053]
[1644278225570,6.25,117.41,117.36,48.54954218]
[1644278225772,0.25,117.41,117.36,48.54954218]
[1644278226171,4.259,117.44,117.36,48.54954218]
[1644278226371,0.25,117.42,117.36,48.57354218]
[1644278226571,10.259,117.44,117.37,0.024]
[1644278226773,10.259,117.45,117.36,48.82354218]
[1644278226971,23.0403,117.45,117.37,0.024]
[1644278228471,23.2903,117.45,117.37,0.024]
[1644278231474,41.6775591,117.45,117.37,0.024]
[1644278235474,56.87858071,117.45,117.37,0.024]
[1644278239384,65.77604359,117.45,117.37,0.024]
[1644278240436,56.04,117.44,117.31,6.68538015]
[1644278240615,0.31518287,117.42,117.31,4.258]
[1644278240812,4.26,117.41,117.31,4.258]
[1644278241012,22.24924243,117.41,117.31,4.258]
[1644278241217,43.45026404,117.41,117.31,4.258]
[1644278241418,33.19026404,117.4,117.27,2.42738015]
[1644278241713,20.10341386,117.39,117.27,4.85557772]
[1644278241913,37.45126404,117.39,117.28,38.06791109]
[1644278242113,33.19026404,117.38,117.28,38.06791109]
[1644278242313,33.19026404,117.38,117.28,42.32891109]
[1644278242515,39.19026404,117.38,117.28,42.32891109]
[1644278242814,39.19026404,117.38,117.28,38.06791109]
[1644278243020,51.98126404,117.38,117.28,38.06791109]
[1644278243716,4.261,117.37,117.28,38.06791109]
[1644278244116,10.261,117.37,117.28,38.06791109]
[1644278244319,10.511,117.37,117.28,38.06791109]
[1644278245117,6.25,117.37,117.28,38.06791109]
[1644278245620,0.25,117.37,117.28,38.06791109]
[1644278245818,50.08443547,117.38,117.28,38.06791109]
[1644278248621,4.261,117.37,117.28,38.06791109]